lending/lending_fUSD_20260104
["ID","MTS","AMOUNT","RATE_DAILY","PERIOD"]
[400442128,1767556367585,-500.0,0.00014582,2]
[400442129,1767556367619,-500.0,0.00014582,2]
[400442130,1767556367653,-500.0,0.00014582,2]
[400442131,1767556367689,-500.0,0.00014582,2]
[400442132,1767556367722,-216.5355086,0.00014582,2]
[400442133,1767556367775,-283.4644914,0.00014582,2]
[400442134,1767556367808,-500.0,0.00014582,2]
[400442135,1767556367842,-500.0,0.00014582,2]
[400442136,1767556367875,-500.0,0.00014582,2]
[400442137,1767556367905,-500.0,0.00014583,2]
[400442138,1767556367934,-500.0,0.00014583,2]
[400442139,1767556367964,-500.0,0.00014583,2]
[400442140,1767556367994,-500.0,0.00014583,2]
[400442141,1767556368023,-500.0,0.00014583,2]
[400442142,1767556368051,-500.0,0.00014583,2]
[400442143,1767556368080,-150.0,0.00014585,2]
[400442144,1767556368198,-183.73622826,0.00014585,2]
[400442145,1767556368228,-220.96867999,0.00014585,2]
[400442146,1767556368257,-500.0,0.00014585,2]
[400442147,1767556368289,-186.87712441,0.00014585,2]
[400442148,1767556368318,-184.49610956,0.00014585,2]
[400442149,1767556368348,-500.0,0.00014585,2]
[400442150,1767556368378,-250.0,0.00014586,2]
[400442151,1767556368893,-169.68640475,0.00014586,2]
[400442152,1767556368907,-250.0,0.00014586,2]
[400442153,1767556368921,-5947.85371556,0.00014586,2]
[400442154,1767556368949,-10000.01,0.00014586,2]
[400442155,1767556368963,-10000.01,0.00014586,2]
[400442156,1767556368990,-10000.01,0.00014586,2]
[400442157,1767556369004,-10000.01,0.00014586,2]
[400442158,1767556369019,-10000.01,0.00014586,2]
[400442160,1767556378343,-585.18808203,0.00014582,2]
[400442161,1767556378378,-585.18808203,0.00014582,2]
[400442162,1767556378411,-585.18808203,0.00014582,2]
[400442163,1767556378441,-585.18808203,0.00014582,2]
[400442164,1767556378471,-585.18808203,0.00014582,2]
[400442165,1767556378500,-585.18808203,0.00014582,2]
[400442166,1767556378530,-585.18808203,0.00014582,2]
[400442167,1767556378560,-585.18808203,0.00014582,2]
[400442168,1767556378593,-51.81260549,0.00014582,2]
[400442169,1767556378698,-533.37547654,0.00014582,2]
[400442170,1767556378728,-585.18808203,0.00014582,2]
[400442171,1767556378757,-585.18808203,0.00014582,2]
[400442172,1767556378785,-585.18808203,0.00014582,2]
[400442173,1767556378814,-585.18808203,0.00014582,2]
[400442174,1767556378845,-585.18808203,0.00014582,2]
[400442175,1767556378874,-585.18808203,0.00014582,2]
[400442176,1767556378904,-585.18808203,0.00014582,2]
[400442177,1767556378933,-155.43781647,0.00014582,2]
[400442178,1767556379099,-377.93766007,0.00014582,2]
[400442179,1767556379116,-51.81260549,0.00014582,2]
[400442180,1767556379125,-533.37547654,0.00014582,2]
[400442181,1767556384144,-51.81260549,0.00014582,2]
[400442182,1767556384176,-585.18808203,0.00014582,2]
[400442183,1767556384207,-585.18808203,0.00014582,2]
[400442184,1767556384237,-585.18808203,0.00014582,2]
[400442185,1767556384268,-585.18808203,0.00014582,2]
[400442186,1767556384298,-585.18808203,0.00014582,2]
[400442187,1767556384328,-585.18808203,0.00014582,2]
[400442188,1767556384359,-585.18808203,0.00014582,2]
[400442189,1767556384390,-585.18808203,0.00014582,2]
[400442190,1767556384562,-585.18808203,0.00014582,2]
[400442191,1767556384593,-585.18808203,0.00014582,2]
[400442192,1767556384625,-585.18808203,0.00014582,2]
[400442193,1767556384656,-585.18808203,0.00014582,2]
[400442194,1767556384686,-585.18808203,0.00014582,2]
[400442195,1767556384716,-585.18808203,0.00014582,2]
[400442196,1767556384745,-585.18808203,0.00014582,2]
[400442197,1767556384773,-585.18808203,0.00014582,2]
[400442198,1767556384803,-51.81260549,0.00014582,2]
[400442199,1767556385100,-533.37547654,0.00014582,2]
[400442200,1767556385132,-585.18808203,0.00014582,2]
[400442201,1767556385163,-585.18808203,0.00014582,2]
[400442202,1767556385195,-585.18808203,0.00014582,2]
[400442203,1767556385225,-585.18808203,0.00014582,2]
[400442204,1767556385255,-585.18808203,0.00014582,2]
[400442205,1767556385287,-585.18808203,0.00014582,2]
[400442206,1767556385317,-585.18808203,0.00014582,2]
[400442207,1767556385348,-155.43781647,0.00014582,2]
[400442208,1767556385484,-429.75026556,0.00014582,2]
[400442209,1767556385517,-585.18808203,0.00014582,2]
[400442210,1767556385547,-585.18808203,0.00014582,2]
[400442211,1767556385578,-585.18808203,0.00014582,2]
[400442212,1767556385789,-326.12505458,0.00014586,2]
[400442213,1767556385804,-585.18808203,0.00014586,2]
[400442214,1767556385819,-585.18808203,0.00014586,2]
[400442215,1767556385834,-5629.3809767,0.00014586,2]
[400442217,1767556393702,-10000.01,0.00014586,2]
[400442220,1767556402105,-10000.01,0.00014586,2]
[400442221,1767556402294,-10000.01,0.00014586,2]
[400442222,1767556402500,-10000.01,0.00014586,2]
[400442245,1767556527624,186.97055321,0.000328,120]
[400442301,1767556910504,165.76,0.00011186,2]
[400442321,1767557043891,265.13865159,0.00013699,2]
[400442365,1767557136510,-551.82134841,0.00013699,2]
[400442366,1767557136539,-150.0,0.00013878,2]
[400442367,1767557136566,-1500.0,0.00013907,2]
[400442368,1767557136597,-1200.0,0.00014544,2]
[400442369,1767557136624,-300.0,0.00014544,2]
[400442370,1767557136652,-163.1260951,0.00014545,2]
[400442371,1767557136682,-163.1260951,0.00014545,2]
[400442372,1767557136709,-743.86292278,0.00014545,2]
[400442373,1767557136962,-456.13707722,0.00014545,2]
[400442444,1767557216365,-195.0,0.00014545,2]
[400442445,1767557216609,-300.0,0.00014545,2]
[400442446,1767557216633,-300.0,0.00014546,2]
[400442447,1767557216657,-270.0,0.00014546,2]
[400442448,1767557216679,-163.1260951,0.00014546,2]
[400442449,1767557216703,-1000.0,0.0001455,2]
[400442450,1767557216724,-300.0,0.00014552,2]
[400442451,1767557216745,-195.0,0.00014552,2]
[400442452,1767557216766,-4236.44135251,0.00014553,2]
[400442455,1767557219851,-177.98369326,0.00014553,2]
[400442457,1767557222218,-255.32900744,0.00014553,2]
[400442461,1767557224246,-187.63816536,0.00014553,2]
[400442465,1767557229758,-161.41992823,0.00014553,2]
[400442466,1767557232335,-300.0,0.00014553,2]
[400442468,1767557233898,-169.56441531,0.00014553,2]
[400442469,1767557235292,-103.37933375,0.00014553,2]
[400442470,1767557235321,-60.05724992,0.00014553,2]
[400442472,1767557236731,-365.94217656,0.00014553,2]
[400442475,1767557240345,-357.20962166,0.00014553,2]
[400442478,1767557243421,-192.03704288,0.00014553,2]
[400442479,1767557244843,-328.1886623,0.00014553,2]
[400442482,1767557247127,-4156.06129866,0.00014553,2]
[400442483,1767557247149,-162.88157187,0.00014553,2]
[400442484,1767557247174,-250.0,0.00014565,2]
[400442485,1767557247196,-150.0,0.00014576,2]
[400442486,1767557247219,-4923.83716538,0.00014576,2]
[400442487,1767557249797,-165.30030617,0.00014576,2]
[400442489,1767557251519,-362.54894522,0.00014576,2]
[400442493,1767557256559,-417.87873841,0.00014576,2]
[400442494,1767557257933,-361.90267073,0.00014576,2]
[400442497,1767557260546,-245.75464601,0.00014576,2]
[400442499,1767557262313,-163.01688665,0.00014576,2]
[400442500,1767557264297,-404.0648565,0.00014576,2]
[400442502,1767557267862,-310.10312473,0.00014576,2]
[400442505,1767557270448,644.09,7.301e-05,2]
[400442506,1767557270653,644.09,7.685e-05,2]
[400442507,1767557270850,644.09,8.069e-05,2]
[400442509,1767557271041,644.09,8.453e-05,2]
[400442510,1767557271256,644.09,8.838e-05,2]
[400442511,1767557271665,644.09,9.222e-05,2]
[400442512,1767557271875,644.09,9.606e-05,2]
[400442513,1767557272137,644.09,9.99e-05,2]
[400442514,1767557272546,644.09,0.00010375,2]
[400442515,1767557272586,644.09,0.00010759,2]
[400442518,1767557273518,-337.44414072,0.00011143,2]
[400442521,1767557277164,-251.20867806,0.00011143,2]
[400442524,1767557279803,-55.43718122,0.00011143,2]
[400442525,1767557279826,-253.57249102,0.00011527,2]
[400442527,1767557281852,-390.51750898,0.00011527,2]
[400442528,1767557281874,-16.72446418,0.00011912,2]
[400442532,1767557285467,-327.04458923,0.00011912,2]
[400442535,1767557289421,-300.32094659,0.00011912,2]
[400442536,1767557289445,-32.45248824,0.00012104,2]
[400442549,1767557294055,-156.69908358,0.00012104,2]
[400442550,1767557297287,-110.84842818,0.00012104,2]
[400442551,1767557297314,-321.23874157,0.00012296,2]
[400442552,1767557298785,-322.85125843,0.00012296,2]
[400442553,1767557298814,-126.0212562,0.0001268,2]
[400442554,1767557300870,-66.9787438,0.0001268,2]
[400442555,1767557300895,-92.23702661,0.0001268,2]
[400442556,1767557302485,-243.7905508,0.0001268,2]
[400442557,1767557304439,-227.1731616,0.0001268,2]
[400442559,1767557305767,-80.88926099,0.0001268,2]
[400442560,1767557305790,-197.51047284,0.00013064,2]
[400442562,1767557308972,-267.25128175,0.00013064,2]
[400442563,1767557311421,-179.32824541,0.00013064,2]
[400442564,1767557311443,-20.69230733,0.00013103,2]
[400442565,1767557313269,-229.30769267,0.00013103,2]
[400442566,1767557313290,-55.21602289,0.00013103,2]
[400442567,1767557315717,-243.8679088,0.00013103,2]
[400442568,1767557320149,-0.91606831,0.00013103,2]
[400442569,1767557320172,-175.97337123,0.00013449,2]
[400442571,1767557321317,-468.11662877,0.00013449,2]
[400442572,1767557321343,-644.09,0.00013833,2]
[400442573,1767557321368,-644.09,0.00014217,2]
[400442574,1767557321393,-5429.17507415,0.00014466,2]
[400442575,1767557321423,-992814.52829708,0.00014476,2]
[400442576,1767557322896,-377.50625785,0.00014476,2]
[400442577,1767557325673,-421.44611803,0.00014476,2]
[400442578,1767557328355,-165.56444758,0.00014476,2]
[400442579,1767557329971,-160.28179489,0.00014476,2]
[400442580,1767557333892,-381.0455418,0.00014476,2]
[400442581,1767557335501,-151.78798009,0.00014476,2]
[400442584,1767557340696,-177.52834799,0.00014476,2]
[400442585,1767557342694,-248.22109801,0.00014476,2]
[400442586,1767557342796,232.65885128,0.00013064,2]
[400442587,1767557342831,1899.23071139,0.00013064,2]
[400442588,1767557342864,229.88754356,0.00013064,2]
[400442589,1767557344869,-203.88734398,0.00014476,2]
[400442590,1767557345081,-4898.2027727,0.00014476,2]
[400442591,1767557345102,-300.0,0.00014576,2]
[400442592,1767557345123,-200.0,0.00014577,2]
[400442593,1767557345143,-151.0,0.00014577,2]
[400442594,1767557345164,-151.0,0.00014577,2]
[400442595,1767557345184,-151.0,0.00014577,2]
[400442596,1767557345203,-151.0,0.00014577,2]
[400442597,1767557345224,-153.70166196,0.00014577,2]
[400442598,1767557345245,-200.0,0.00014577,2]
[400442599,1767557345264,-151.0,0.00014577,2]
[400442600,1767557345284,-151.0,0.00014577,2]
[400442601,1767557345306,-151.0,0.00014577,2]
[400442602,1767557345327,-151.0,0.00014577,2]
[400442603,1767557345566,-151.0,0.00014577,2]
[400442604,1767557345590,-151.0,0.00014577,2]
[400442605,1767557345612,-200.01807784,0.00014577,2]
[400442606,1767557346047,-150.0,0.00014582,2]
[400442607,1767557346075,-488.74590428,0.00014583,2]
[400442608,1767557346098,-161.32100513,0.00014583,2]
[400442609,1767557346123,-801.004,0.00014583,2]
[400442610,1767557346151,-500.0,0.00014583,2]
[400442611,1767557346178,-500.0,0.00014583,2]
[400442612,1767557346208,-500.0,0.00014583,2]
[400442613,1767557346235,-500.0,0.00014583,2]
[400442615,1767557346262,-500.0,0.00014583,2]
[400442616,1767557346290,-500.0,0.00014583,2]
[400442617,1767557346318,-500.0,0.00014583,2]
[400442618,1767557346346,-500.0,0.00014583,2]
[400442619,1767557346375,-500.0,0.00014583,2]
[400442620,1767557346404,-500.0,0.00014583,2]
[400442621,1767557346431,-500.0,0.00014583,2]
[400442622,1767557346460,-500.0,0.00014583,2]
[400442623,1767557346489,-500.0,0.00014583,2]
[400442624,1767557346517,-500.0,0.00014583,2]
[400442625,1767557346544,-500.0,0.00014583,2]
[400442626,1767557346571,-500.0,0.00014583,2]
[400442627,1767557346598,-500.0,0.00014583,2]
[400442628,1767557346626,-500.0,0.00014583,2]
[400442629,1767557346655,-600.49291896,0.00014583,2]
[400442630,1767557346684,-500.0,0.00014583,2]
[400442631,1767557346712,-500.0,0.00014583,2]
[400442632,1767557346742,-500.0,0.00014583,2]
[400442633,1767557346768,-500.0,0.00014583,2]
[400442634,1767557346794,-500.0,0.00014583,2]
[400442635,1767557346823,-500.0,0.00014583,2]
[400442636,1767557346850,-500.0,0.00014583,2]
[400442637,1767557346876,-500.0,0.00014583,2]
[400442638,1767557346903,-309.60093858,0.00014583,2]
[400442639,1767557346929,-500.0,0.00014583,2]
[400442640,1767557346956,-500.0,0.00014583,2]
[400442641,1767557346983,-500.0,0.00014583,2]
[400442642,1767557347010,-500.0,0.00014583,2]
[400442643,1767557347041,-500.0,0.00014583,2]
[400442644,1767557347068,-500.0,0.00014583,2]
[400442645,1767557347097,-500.0,0.00014583,2]
[400442646,1767557347124,-500.0,0.00014583,2]
[400442647,1767557347152,-500.0,0.00014583,2]
[400442648,1767557347177,-500.0,0.00014583,2]
[400442649,1767557347203,-452.66448454,0.00014583,2]
[400442650,1767557347231,-500.0,0.00014583,2]
[400442651,1767557347259,-294.42092721,0.00014583,2]
[400442652,1767557347288,-500.0,0.00014583,2]
[400442653,1767557347332,-500.0,0.00014583,2]
[400442654,1767557347361,-235.54005531,0.00014583,2]
[400442655,1767557347390,-500.0,0.00014583,2]
[400442656,1767557347424,-326.49652461,0.00014583,2]
[400442657,1767557347455,-500.0,0.00014583,2]
[400442658,1767557347487,-500.0,0.00014583,2]
[400442659,1767557347516,-548.71647849,0.00014583,2]
[400442660,1767557347547,-500.0,0.00014583,2]
[400442661,1767557347577,-500.0,0.00014583,2]
[400442662,1767557347606,-571.59499359,0.00014583,2]
[400442663,1767557347636,-1423.19,0.00014584,2]
[400442664,1767557347682,-500.0,0.00014585,2]
[400442665,1767557347707,-500.0,0.00014585,2]
[400442666,1767557347733,-500.0,0.00014585,2]
[400442667,1767557347763,-500.0,0.00014585,2]
[400442668,1767557347789,-500.0,0.00014585,2]
[400442669,1767557347814,-500.0,0.00014585,2]
[400442670,1767557347842,-500.0,0.00014585,2]
[400442671,1767557347872,-500.0,0.00014585,2]
[400442672,1767557347911,-500.0,0.00014585,2]
[400442673,1767557347935,-252.09027213,0.00014585,2]
[400442674,1767557347959,-500.0,0.00014585,2]
[400442675,1767557347983,-500.0,0.00014585,2]
[400442676,1767557348007,-500.0,0.00014585,2]
[400442677,1767557348049,-500.0,0.00014585,2]
[400442678,1767557348085,-500.0,0.00014585,2]
[400442679,1767557348109,-500.0,0.00014585,2]
[400442680,1767557348139,-500.0,0.00014585,2]
[400442681,1767557348165,-500.0,0.00014585,2]
[400442682,1767557348192,-500.0,0.00014585,2]
[400442683,1767557348220,-500.0,0.00014585,2]
[400442684,1767557348253,-500.0,0.00014585,2]
[400442685,1767557348281,-500.0,0.00014585,2]
[400442686,1767557348313,-500.0,0.00014585,2]
[400442687,1767557348343,-500.0,0.00014585,2]
[400442688,1767557348371,-500.0,0.00014585,2]
[400442689,1767557348406,-500.0,0.00014585,2]
[400442690,1767557348437,-500.0,0.00014585,2]
[400442691,1767557348466,-500.0,0.00014585,2]
[400442692,1767557348495,-151.0,0.00014586,2]
[400442693,1767557348521,-644.09,0.00014601,2]
[400442694,1767557348547,-3240.0,0.00014795,2]
[400442695,1767557348572,-225.67,0.00014827,2]
[400442696,1767557348600,-1423.19,0.00014858,2]
[400442697,1767557348626,-207.66,0.00014884,2]
[400442699,1767557348829,-5591.75589583,0.00014925,2]
[400442700,1767557348856,-5459.4960519,0.00014925,2]
[400442701,1767557348881,-500.0,0.00014938,2]
[400442702,1767557348904,-500.0,0.00014953,2]
[400442703,1767557348928,-500.0,0.00014953,2]
[400442704,1767557349054,-181.00947801,0.00015007,2]
[400442705,1767557349137,839.697809,7.945e-05,2]
[400442706,1767557350048,-318.99052199,0.00015007,2]
[400442707,1767557350071,-28.49142989,0.00015068,2]
[400442708,1767557350372,281.28655368,0.00013064,2]
[400442709,1767557350411,5102.30663022,0.00013064,2]
[400442710,1767557351008,3874.97124849,0.00013064,2]
[400442711,1767557351240,250.0,8.74e-05,2]
[400442716,1767557359262,-221.50857011,0.00015068,2]
[400442717,1767557359284,-108.4035918,0.00015132,2]
[400442720,1767557362330,-174.56802001,0.00015132,2]
[400442721,1767557364846,-306.44053824,0.00015132,2]
[400442722,1767557367300,-320.68568883,0.00014583,2]
[400442724,1767557368754,-173.57223932,0.00014583,2]
[400442727,1767557372799,-5.74207185,0.00014583,2]
[400442728,1767557372824,-237.31706956,0.00014583,2]
[400442732,1767557375657,-4.84885122,0.00014583,2]
[400442733,1767557375678,-413.41327057,0.00015132,2]
[400442734,1767557377018,-236.34093269,0.00015132,2]
[400442737,1767557381164,-184.02364669,0.00015132,2]
[400442738,1767557381185,-403.02079773,0.00015165,2]
[400442740,1767557383380,-28.81972496,0.00015165,2]
[400442741,1767557383403,-161.16083086,0.00015165,2]
[400442743,1767557386392,-178.91795529,0.00015165,2]
[400442744,1767557389142,-159.92121385,0.00015165,2]
[400442745,1767557389164,-5.04099752,0.00015166,2]
[400442748,1767557391146,-226.51509704,0.00015166,2]
[400442751,1767557395819,-225.63160369,0.00015166,2]
[400442752,1767557398865,-290.51201526,0.00015166,2]
[400442755,1767557400926,-203.43128444,0.00015166,2]
[400442768,1767557406630,-213.26147064,0.00015165,2]
[400442776,1767557409064,-86.73852936,0.00015165,2]
[400442777,1767557409087,-222.57119028,0.00015165,2]
[400442780,1767557415139,-77.42880972,0.00015165,2]
[400442781,1767557415162,-97.52954869,0.00015165,2]
[400442783,1767557416816,-558.18710982,0.00015165,2]
[400442785,1767557419322,500.0,0.00014476,2]
[400442786,1767557419426,-179.51236539,0.00015165,2]
[400442787,1767557420856,-338.79664616,0.00015165,2]
[400442789,1767557427034,-25.97432994,0.00015165,2]
[400442790,1767557427060,-183.90186694,0.00015165,2]
[400442791,1767557429492,-116.09813306,0.00015165,2]
[400442792,1767557429517,-100.72978364,0.00015165,2]
[400442793,1767557431326,-175.27021636,0.00015165,2]
[400442794,1767557431348,-112.12729435,0.00015165,2]
[400442801,1767557431657,-82.87270565,0.00015165,2]
[400442802,1767557431670,-250.0,0.00015165,2]
[400442803,1767557431679,-44.93517769,0.00015166,2]
[400442804,1767557431691,-6165.28012438,0.00015166,2]
[400442805,1767557431712,-345.51780687,0.00015166,2]
[400442806,1767557431723,-17765.03840616,0.00015166,2]
[400442807,1767557431820,-532.82685681,0.00015166,2]
[400442808,1767557431834,-2535.48197541,0.00015166,2]
[400442809,1767557431845,-4625.7895929,0.00015166,2]
[400442810,1767557431927,-3528.14577167,0.00015166,2]
[400442811,1767557431940,-2238.41975202,0.00015166,2]
[400442947,1767557434610,-261.74098493,0.00014897,2]
[400442949,1767557437748,-539.93551002,0.00014897,2]
[400442950,1767557437776,-208.86258977,0.00014897,2]
[400442951,1767557437804,-3454.45103918,0.00014897,2]
[400442952,1767557437814,-607.92353814,0.00015166,2]
[400442953,1767557437823,-5459.4960519,0.00015297,2]
[400442954,1767557437832,-150.99,0.0001531,2]
[400442955,1767557437842,-9455.67,0.0001531,2]
[400442956,1767557437851,-9999.99,0.0001531,2]
[400442957,1767557437860,-9895.79,0.0001531,2]
[400442958,1767557437869,-307.38,0.0001531,2]
[400442959,1767557437878,-500.0,0.00015373,2]
[400442960,1767557437887,-500.0,0.00015373,2]
[400442961,1767557437896,-500.0,0.00015373,2]
[400442962,1767557437905,-500.0,0.00015373,2]
[400442963,1767557437915,-500.0,0.00015373,2]
[400442964,1767557437924,-504.0985395,0.00015373,2]
[400442965,1767557437934,-500.0,0.00015373,2]
[400442966,1767557437943,-500.0,0.00015373,2]
[400442967,1767557437953,-1423.19,0.00015406,2]
[400442968,1767557437963,-308.06091155,0.00015511,2]
[400442969,1767557437972,-5591.75589583,0.00015669,2]
[400442970,1767557437983,-5459.4960519,0.00015669,2]
[400442971,1767557437992,-1423.19,0.0001568,2]
[400442972,1767557438001,-255.0,0.00015705,2]
[400442973,1767557438010,-207.66,0.00015711,2]
[400442974,1767557438019,-451.20369777,0.00015921,2]
[400442975,1767557438028,-1000.0,0.00015921,2]
[400442976,1767557438038,-1000.0,0.00015921,2]
[400442977,1767557438047,-775.12436298,0.00015921,2]
[400442978,1767557438056,-1000.0,0.00015921,2]
[400442979,1767557438066,-1000.0,0.00015921,2]
[400442980,1767557438075,-1000.0,0.00015921,2]
[400442981,1767557438084,-170.46360937,0.00015944,2]
[400442982,1767557438093,-161.6453,0.00015945,2]
[400442983,1767557438102,-151.0,0.00015947,2]
[400442984,1767557438112,-151.0,0.00015947,2]
[400442985,1767557438122,-151.0,0.00015953,2]
[400442986,1767557438131,-151.0,0.00015953,2]
[400442987,1767557438141,-1423.19,0.00015954,2]
[400442988,1767557438150,-151.0,0.00015959,2]
[400442989,1767557438159,-151.0,0.00015959,2]
[400442990,1767557438169,-151.0,0.00015959,2]
[400442991,1767557438178,-151.0,0.00015959,2]
[400442992,1767557438188,-285.96433615,0.00015973,2]
[400442993,1767557438198,-500.0,0.00015973,2]
[400442994,1767557438208,-500.0,0.00015973,2]
[400442995,1767557438217,-500.0,0.00015973,2]
[400442996,1767557438227,-500.0,0.00015973,2]
[400442997,1767557438237,-500.0,0.00015973,2]
[400442998,1767557438247,-500.0,0.00015973,2]
[400442999,1767557438256,-500.0,0.00015973,2]
[400443000,1767557438265,-500.0,0.00015973,2]
[400443001,1767557438274,-500.0,0.00015973,2]
[400443002,1767557438283,-500.0,0.00015973,2]
[400443003,1767557438295,-162.39049405,0.00015973,2]
[400443004,1767557438305,-500.0,0.00015973,2]
[400443005,1767557438323,-500.0,0.00015973,2]
[400443006,1767557438335,-500.0,0.00015973,2]
[400443007,1767557438344,-500.0,0.00015973,2]
[400443008,1767557438354,-194.13251181,0.00015973,2]
[400443009,1767557438363,-500.0,0.00015973,2]
[400443010,1767557438373,-167.71055694,0.00015973,2]
[400443011,1767557438382,-500.0,0.00015973,2]
[400443012,1767557438392,-500.0,0.00015973,2]
[400443013,1767557438401,-500.0,0.00015973,2]
[400443014,1767557438411,-500.33330588,0.00015973,2]
[400443015,1767557438421,-500.0,0.00015973,2]
[400443016,1767557438430,-609.46856999,0.00015973,2]
[400443017,1767557438440,-500.0,0.00015973,2]
[400443018,1767557438450,-500.0,0.00015973,2]
[400443019,1767557438460,-500.0,0.00015973,2]
[400443020,1767557438471,-500.0,0.00015973,2]
[400443021,1767557438480,-500.0,0.00015973,2]
[400443022,1767557438490,-500.0,0.00015973,2]
[400443023,1767557438499,-500.0,0.00015973,2]
[400443024,1767557438509,-500.0,0.00015973,2]
[400443025,1767557438519,-586.98015224,0.00015973,2]
[400443026,1767557438530,-500.0,0.00015973,2]
[400443027,1767557438539,-500.0,0.00015973,2]
[400443028,1767557438550,-500.0,0.00015973,2]
[400443029,1767557438560,-500.0,0.00015973,2]
[400443030,1767557438570,-500.0,0.00015973,2]
[400443031,1767557438581,-251.33131614,0.00015973,2]
[400443032,1767557438752,-248.66868386,0.00015973,2]
[400443033,1767557438762,-32.1333707,0.00015973,2]
[400443034,1767557438774,-467.8666293,0.00015973,2]
[400443035,1767557438784,-500.0,0.00015973,2]
[400443036,1767557438793,-577.0015359,0.00015973,2]
[400443037,1767557438802,-500.0,0.00015973,2]
[400443038,1767557438812,-500.0,0.00015973,2]
[400443039,1767557438821,-9.11789894,0.00015973,2]
[400443040,1767557438833,-490.88210106,0.00015973,2]
[400443041,1767557438843,-380.17789894,0.00015973,2]
[400443046,1767557439752,-119.82210106,0.00015973,2]
[400443047,1767557439764,-336.03289894,0.00015973,2]
[400443048,1767557439776,-163.96710106,0.00015973,2]
[400443049,1767557439786,-500.0,0.00015973,2]
[400443050,1767557439795,-377.23289594,0.00015973,2]
[400443052,1767557440895,-122.76710406,0.00015973,2]
[400443053,1767557440904,-500.0,0.00015973,2]
[400443054,1767557440913,-500.0,0.00015973,2]
[400443055,1767557440922,-500.0,0.00015973,2]
[400443056,1767557440931,-195.0,0.00016,2]
[400443057,1767557440940,-225.49170008,0.00016,2]
[400443058,1767557440950,-195.0,0.00016008,2]
[400443059,1767557440960,-250.0,0.00016008,2]
[400443061,1767557440969,-2500.0,0.00016035,2]
[400443062,1767557440979,-300.0,0.00016035,2]
[400443063,1767557440988,-5591.75589583,0.00016041,2]
[400443064,1767557440998,-5459.4960519,0.00016041,2]
[400443065,1767557441007,-291.30770489,0.00016052,2]
[400443066,1767557441016,-200.0,0.00016065,2]
[400443067,1767557441027,-207.4,0.00016065,2]
[400443068,1767557441036,-215.0738,0.00016065,2]
[400443069,1767557441046,-223.0315306,0.00016065,2]
[400443070,1767557441055,-231.28369723,0.00016065,2]
[400443071,1767557441064,-239.84119403,0.00016065,2]
[400443072,1767557441073,-248.71531821,0.00016065,2]
[400443073,1767557441082,-257.91778498,0.00016065,2]
[400443074,1767557441091,-267.46074303,0.00016065,2]
[400443075,1767557441100,-277.35679052,0.00016065,2]
[400443076,1767557441109,-500.0,0.00016065,2]
[400443077,1767557441119,-500.0,0.00016065,2]
[400443078,1767557441130,-500.0,0.00016065,2]
[400443079,1767557441139,-500.0,0.00016065,2]
[400443080,1767557441150,-500.0,0.00016065,2]
[400443081,1767557441160,-500.0,0.00016065,2]
[400443082,1767557441170,-637.77412111,0.00016065,2]
[400443083,1767557441181,-354.11325635,0.00016065,2]
[400443084,1767557441190,-9999.99,0.00016116,2]
[400443085,1767557441199,-41855.73,0.00016126,2]
[400443086,1767557441209,-1423.19,0.00016228,2]
[400443087,1767557441218,-1000.0,0.00016369,2]
[400443088,1767557441228,-5591.75589583,0.00016412,2]
[400443089,1767557441238,-5459.4960519,0.00016412,2]
[400443090,1767557441247,-162.88157185,0.00016421,2]
[400443091,1767557441257,-170.46360933,0.00016433,2]
[400443092,1767557441266,-500.0,0.00016437,2]
[400443093,1767557441275,-500.0,0.00016438,2]